fUSD/lending_fUSD_20240419
["ID","MTS","AMOUNT","RATE_DAILY","PERIOD"]
[322966524,1713547926442,-500.0,0.00015616,2]
[322966525,1713547926455,-841.68,0.00015616,2]
[322966526,1713547926464,-5268.86,0.00015616,2]
[322966527,1713547926474,-879.59,0.00015616,2]
[322966528,1713547926483,-1343.94,0.00015616,2]
[322966529,1713547926494,-500.0,0.00015616,2]
[322966530,1713547926504,-4733.91,0.00015616,2]
[322966531,1713547926514,-1082.66,0.00015616,2]
[322966532,1713547926524,-500.0,0.00015616,2]
[322966533,1713547926534,-500.0,0.00015616,2]
[322966534,1713547926545,-500.0,0.00015616,2]
[322966535,1713547926554,-1090.92,0.00015616,2]
[322966536,1713547926564,-500.0,0.00015616,2]
[322966537,1713547926574,-1759.6,0.00015616,2]
[322966538,1713547926584,-742.94,0.00015616,2]
[322966539,1713547926594,-567.95,0.00015616,2]
[322966540,1713547926604,-500.0,0.00015616,2]
[322966541,1713547926613,-500.0,0.00015616,2]
[322966542,1713547926623,-622.47,0.00015616,2]
[322966543,1713547926633,-4863.74,0.00015616,2]
[322966544,1713547926643,-2946.36,0.00015616,2]
[322966545,1713547926653,-865.24,0.00015616,2]
[322966546,1713547926664,-500.0,0.00015616,2]
[322966547,1713547926675,-977.04,0.00015616,2]
[322966548,1713547926686,-1173.2,0.00015616,2]
[322966549,1713547926696,-705.94,0.00015616,2]
[322966550,1713547926706,-620.59430059,0.00015616,2]
[322966551,1713547926716,-1040.86,0.00015616,2]
[322966552,1713547926726,-1709.0,0.00015616,2]
[322966553,1713547926736,-1225.48,0.00015616,2]
[322966554,1713547926745,-1647.32,0.00015616,2]
[322966555,1713547926755,-1418.14,0.00015616,2]
[322966556,1713547926764,-1311.75,0.00015616,2]
[322966557,1713547926774,-2658.56,0.00015616,2]
[322966558,1713547926783,-969.72,0.00015616,2]
[322966559,1713547926793,-500.0,0.00015616,2]
[322966560,1713547926804,-6579.29,0.00015616,2]
[322966561,1713547926814,-500.0,0.00015616,2]
[322966562,1713547926823,-15195.99,0.00015616,2]
[322966563,1713547926833,-1735.44,0.00015616,2]
[322966564,1713547926843,-1421.48,0.00015616,2]
[322966565,1713547926853,-2819.15,0.00015616,2]
[322966566,1713547926862,-539.84,0.00015616,2]
[322966567,1713547926872,-3560.07,0.00015616,2]
[322966568,1713547926882,-755.96,0.00015616,2]
[322966569,1713547926892,-500.0,0.00015616,2]
[322966570,1713547926901,-1491.97,0.00015616,2]
[322966571,1713547926910,-11876.02,0.00015616,2]
[322966572,1713547926920,-225.19461507,0.00015616,2]
[322966573,1713547926930,-500.0,0.00015616,2]
[322966574,1713547926940,-765.25,0.00015616,2]
[322966575,1713547926949,-1279.81,0.00015616,2]
[322966576,1713547926958,-5736.72,0.00015616,2]
[322966577,1713547926968,-508.97,0.00015616,2]
[322966578,1713547926978,-1088.04,0.00015616,2]
[322966579,1713547926988,-629.73,0.00015616,2]
[322966580,1713547927002,-6573.7,0.00015616,2]
[322966581,1713547927015,-45218.75,0.00015616,2]
[322966582,1713547927025,-500.0,0.00015616,2]
[322966583,1713547927035,-500.0,0.00015616,2]
[322966584,1713547927046,-5396.18,0.00015616,2]
[322966585,1713547927055,-685.5,0.00015616,2]
[322966586,1713547927065,-500.0,0.00015616,2]
[322966587,1713547927074,-52964.1,0.00015616,2]
[322966588,1713547927084,-558.14,0.00015616,2]
[322966589,1713547927094,-1025.75,0.00015616,2]
[322966590,1713547927103,-681.73,0.00015616,2]
[322966591,1713547927113,-2662.99,0.00015616,2]
[322966592,1713547927122,-623.50496639,0.00015616,2]
[322966593,1713547927132,-2204.22,0.00015616,2]
[322966594,1713547927141,-5965.37,0.00015616,2]
[322966595,1713547927151,-3247.07,0.00015616,2]
[322966596,1713547927161,-500.0,0.00015616,2]
[322966597,1713547927171,-674.06,0.00015616,2]
[322966598,1713547927181,-12227.84,0.00015616,2]
[322966599,1713547927191,-500.0,0.00015616,2]
[322966600,1713547927202,-4761.03,0.00015616,2]
[322966601,1713547927211,-4123.91,0.00015616,2]
[322966602,1713547927222,-1367.3,0.00015616,2]
[322966603,1713547927238,-3343.38,0.00015616,2]
[322966604,1713547927248,-741.07,0.00015616,2]
[322966605,1713547927258,-757.02,0.00015616,2]
[322966606,1713547927267,-1610.38,0.00015616,2]
[322966607,1713547927279,-500.0,0.00015616,2]
[322966608,1713547927289,-5484.98,0.00015616,2]
[322966609,1713547927298,-928.0,0.00015616,2]
[322966610,1713547927308,-500.0,0.00015616,2]
[322966611,1713547927317,-6276.92,0.00015616,2]
[322966612,1713547927327,-3916.21,0.00015616,2]
[322966613,1713547927336,-500.0,0.00015616,2]
[322966614,1713547927346,-588.77,0.00015616,2]
[322966615,1713547927355,-500.0,0.00015616,2]
[322966616,1713547927365,-2018.33,0.00015616,2]
[322966617,1713547927374,-3262.35,0.00015616,2]
[322966618,1713547927384,-615.68,0.00015616,2]
[322966619,1713547927394,-585.61,0.00015616,2]
[322966620,1713547927404,-711.84,0.00015616,2]
[322966621,1713547927414,-6581.21,0.00015616,2]
[322966622,1713547927425,-2216.57,0.00015616,2]
[322966623,1713547927435,-3455.3,0.00015616,2]
[322966624,1713547927445,-11383.33,0.00015616,2]
[322966625,1713547927458,-1041.22,0.00015616,2]
[322966626,1713547927467,-500.0,0.00015616,2]
[322966627,1713547927478,-500.0,0.00015616,2]
[322966628,1713547927487,-4221.78,0.00015616,2]
[322966629,1713547927499,-500.0,0.00015616,2]
[322966630,1713547927508,-510.55,0.00015616,2]
[322966631,1713547927518,-2544.65,0.00015616,2]
[322966632,1713547927530,-5227.38,0.00015616,2]
[322966633,1713547927540,-1412.66,0.00015616,2]
[322966634,1713547927550,-500.0,0.00015616,2]
[322966635,1713547927559,-500.34,0.00015616,2]
[322966636,1713547927568,-1381.75,0.00015616,2]
[322966637,1713547927578,-500.0,0.00015616,2]
[322966638,1713547927587,-500.0,0.00015616,2]
[322966639,1713547927597,-1200.91,0.00015616,2]
[322966640,1713547927606,-1955.31,0.00015616,2]
[322966641,1713547927616,-1841.57,0.00015616,2]
[322966642,1713547927626,-2222.35,0.00015616,2]
[322966643,1713547927636,-725.96,0.00015616,2]
[322966644,1713547927646,-3026.62,0.00015616,2]
[322966645,1713547927656,-34683.45,0.00015616,2]
[322966646,1713547927666,-500.0,0.00015616,2]
[322966647,1713547927680,-1352.02,0.00015616,2]
[322966648,1713547927692,-1187.41,0.00015616,2]
[322966649,1713547927702,-2477.82,0.00015616,2]
[322966650,1713547927713,-48949.39,0.00015616,2]
[322966651,1713547927723,-838.58,0.00015616,2]
[322966652,1713547927733,-500.0,0.00015616,2]
[322966653,1713547927744,-500.0,0.00015616,2]
[322966654,1713547927754,-2826.35,0.00015616,2]
[322966655,1713547927763,-1497.49,0.00015616,2]
[322966656,1713547927774,-4102.58,0.00015616,2]
[322966657,1713547927785,-6421.67,0.00015616,2]
[322966658,1713547927795,-575.23,0.00015616,2]
[322966659,1713547927806,-1636.84,0.00015616,2]
[322966660,1713547927817,-500.0,0.00015616,2]
[322966661,1713547927828,-665.25,0.00015616,2]
[322966662,1713547927838,-1692.21,0.00015616,2]
[322966663,1713547927848,-500.0,0.00015616,2]
[322966664,1713547927858,-890.38,0.00015616,2]
[322966665,1713547927869,-910.31,0.00015616,2]
[322966666,1713547927879,-11912.4,0.00015616,2]
[322966667,1713547927890,-1407.06,0.00015616,2]
[322966668,1713547927900,-500.0,0.00015616,2]
[322966669,1713547927911,-3819.63,0.00015616,2]
[322966670,1713547927922,-1156.25,0.00015616,2]
[322966671,1713547927933,-618.87,0.00015616,2]
[322966672,1713547927944,-1218.69,0.00015616,2]
[322966673,1713547927955,-9676.28,0.00015616,2]
[322966674,1713547927966,-3329.81,0.00015616,2]
[322966675,1713547927976,-500.0,0.00015616,2]
[322966676,1713547927987,-500.0,0.00015616,2]
[322966677,1713547927999,-810.65,0.00015616,2]
[322966678,1713547928009,-1446.72,0.00015616,2]
[322966679,1713547928020,-2283.33,0.00015616,2]
[322966680,1713547928031,-503.4,0.00015616,2]
[322966681,1713547928041,-4544.04,0.00015616,2]
[322966682,1713547928051,-4158.65,0.00015616,2]
[322966683,1713547928062,-553.47,0.00015616,2]
[322966684,1713547928072,-1380.73,0.00015616,2]
[322966685,1713547928082,-500.0,0.00015616,2]
[322966686,1713547928092,-2200.13,0.00015616,2]
[322966687,1713547928102,-500.0,0.00015616,2]
[322966688,1713547928113,-5560.86,0.00015616,2]
[322966689,1713547928124,-1355.17,0.00015616,2]
[322966690,1713547928134,-500.0,0.00015616,2]
[322966691,1713547928144,-563.91,0.00015616,2]
[322966692,1713547928154,-4919.23,0.00015616,2]
[322966693,1713547928164,-1002.43,0.00015616,2]
[322966694,1713547928178,-3973.79,0.00015616,2]
[322966695,1713547928189,-1060.49,0.00015616,2]
[322966696,1713547928199,-579.36,0.00015616,2]
[322966697,1713547928210,-552.75,0.00015616,2]
[322966698,1713547928220,-763.03,0.00015616,2]
[322966699,1713547928229,-4595.55,0.00015616,2]
[322966700,1713547928239,-2855.28,0.00015616,2]
[322966701,1713547928249,-500.0,0.00015616,2]
[322966702,1713547928260,-783.48,0.00015616,2]
[322966703,1713547928270,-1158.83,0.00015616,2]
[322966704,1713547928281,-6542.37,0.00015616,2]
[322966705,1713547928291,-500.0,0.00015616,2]
[322966706,1713547928301,-881.51,0.00015616,2]
[322966707,1713547928311,-500.0,0.00015616,2]
[322966708,1713547928321,-883.28,0.00015616,2]
[322966709,1713547928331,-594.1,0.00015616,2]
[322966710,1713547928341,-1421.77,0.00015616,2]
[322966711,1713547928351,-500.0,0.00015616,2]
[322966712,1713547928362,-981.0,0.00015616,2]
[322966713,1713547928372,-6206.7,0.00015616,2]
[322966714,1713547928381,-1052.1,0.00015616,2]
[322966715,1713547928391,-1538.61,0.00015616,2]
[322966716,1713547928402,-4085.8,0.00015616,2]
[322966717,1713547928412,-4062.96,0.00015616,2]
[322966718,1713547928425,-368.23871444,0.00015616,2]
[322966719,1713547928436,-1948.78,0.00015616,2]
[322966720,1713547928449,-500.0,0.00015616,2]
[322966721,1713547928460,-500.0,0.00015616,2]
[322966722,1713547928470,-17497.97,0.00015616,2]
[322966723,1713547928481,-1007.95,0.00015616,2]
[322966724,1713547928493,-4425.62,0.00015616,2]
[322966725,1713547928502,-2639.01,0.00015616,2]
[322966726,1713547928512,-500.79,0.00015616,2]
[322966727,1713547928522,-861.47,0.00015616,2]
[322966728,1713547928533,-500.0,0.00015616,2]
[322966729,1713547928543,-1492.61,0.00015616,2]
[322966730,1713547928554,-2352.54,0.00015616,2]
[322966731,1713547928564,-500.0,0.00015616,2]
[322966732,1713547928575,-742.07,0.00015616,2]
[322966733,1713547928585,-2108.24,0.00015616,2]
[322966734,1713547928595,-1292.25,0.00015616,2]
[322966735,1713547928605,-3161.42,0.00015616,2]
[322966736,1713547928615,-4352.24,0.00015616,2]
[322966737,1713547928625,-685.18,0.00015616,2]
[322966738,1713547928635,-654.56,0.00015616,2]
[322966739,1713547928645,-2475.19,0.00015616,2]
[322966740,1713547928656,-527.43,0.00015616,2]
[322966741,1713547928666,-811.56,0.00015616,2]
[322966742,1713547928679,-1931.25,0.00015616,2]
[322966743,1713547928689,-3289.05,0.00015616,2]
[322966744,1713547928700,-500.0,0.00015616,2]
[322966745,1713547928710,-2186.22,0.00015616,2]
[322966746,1713547928720,-2127.86,0.00015616,2]
[322966747,1713547928730,-500.0,0.00015616,2]
[322966748,1713547928740,-500.0,0.00015616,2]
[322966749,1713547928750,-634.17,0.00015616,2]
[322966750,1713547928759,-1946.84,0.00015616,2]
[322966751,1713547928769,-530.4,0.00015616,2]
[322966752,1713547928779,-3103.16,0.00015616,2]
[322966753,1713547928790,-579.92,0.00015616,2]
[322966754,1713547928800,-500.0,0.00015616,2]
[322966755,1713547928810,-6085.95,0.00015616,2]
[322966756,1713547928820,-500.0,0.00015616,2]
[322966757,1713547928830,-7088.93,0.00015616,2]
[322966758,1713547928840,-4287.56,0.00015616,2]
[322966759,1713547928850,-5419.22,0.00015616,2]
[322966760,1713547928860,-1208.62,0.00015616,2]
[322966761,1713547928870,-929.94,0.00015616,2]
[322966762,1713547928880,-1855.49,0.00015616,2]
[322966763,1713547928889,-2058.59,0.00015616,2]
[322966764,1713547928899,-645.16,0.00015616,2]
[322966765,1713547928909,-500.0,0.00015616,2]
[322966766,1713547928923,-1101.99,0.00015616,2]
[322966767,1713547928933,-4357.62,0.00015616,2]
[322966768,1713547928944,-1709.63,0.00015616,2]
[322966769,1713547928955,-2921.52,0.00015616,2]
[322966770,1713547928965,-3605.39,0.00015616,2]
[322966771,1713547928975,-2913.82,0.00015616,2]
[322966772,1713547928985,-2284.23,0.00015616,2]
[322966773,1713547928994,-3148.21,0.00015616,2]
[322966774,1713547929004,-3089.2,0.00015616,2]
[322966775,1713547929014,-887.62,0.00015616,2]
[322966776,1713547929024,-8483.21,0.00015616,2]
[322966777,1713547929034,-1335.04,0.00015616,2]
[322966778,1713547929044,-10199.48,0.00015616,2]
[322966779,1713547929054,-500.0,0.00015616,2]
[322966780,1713547929065,-2491.95,0.00015616,2]
[322966781,1713547929075,-2270.49,0.00015616,2]
[322966782,1713547929085,-906.26,0.00015616,2]
[322966783,1713547929095,-1698.74,0.00015616,2]
[322966784,1713547929106,-500.0,0.00015616,2]
[322966785,1713547929116,-500.0,0.00015616,2]
[322966786,1713547929126,-500.0,0.00015616,2]
[322966787,1713547929136,-500.0,0.00015616,2]
[322966788,1713547929146,-811.94,0.00015616,2]
[322966789,1713547929157,-2166.43,0.00015616,2]
[322966790,1713547929167,-500.0,0.00015616,2]
[322966791,1713547929178,-2680.87,0.00015616,2]
[322966792,1713547929188,-5021.77,0.00015616,2]
[322966793,1713547929198,-500.0,0.00015616,2]
[322966794,1713547929208,-3326.38,0.00015616,2]
[322966795,1713547929218,-7308.28,0.00015616,2]
[322966796,1713547929229,-3575.85,0.00015616,2]
[322966797,1713547929239,-500.0,0.00015616,2]
[322966798,1713547929250,-500.0,0.00015616,2]
[322966799,1713547929261,-626.31793984,0.00015616,2]
[322966800,1713547929272,-866.36,0.00015616,2]
[322966801,1713547929282,-5687.27,0.00015616,2]
[322966802,1713547929292,-3274.38,0.00015616,2]
[322966803,1713547929302,-3955.01,0.00015616,2]
[322966804,1713547929312,-2569.93,0.00015616,2]
[322966805,1713547929322,-2170.26,0.00015616,2]
[322966806,1713547929331,-566.94,0.00015616,2]
[322966807,1713547929341,-500.0,0.00015616,2]
[322966808,1713547929351,-926.38,0.00015616,2]
[322966809,1713547929360,-531.64,0.00015616,2]
[322966810,1713547929371,-2771.27,0.00015616,2]
[322966811,1713547929381,-3429.85,0.00015616,2]
[322966812,1713547929391,-811.58,0.00015616,2]
[322966813,1713547929400,-500.0,0.00015616,2]
[322966814,1713547929410,-4169.76,0.00015616,2]
[322966815,1713547929420,-500.0,0.00015616,2]
[322966816,1713547929431,-1171.56,0.00015616,2]
[322966817,1713547929441,-7301.02,0.00015616,2]
[322966818,1713547929452,-740.92,0.00015616,2]
[322966819,1713547929463,-5217.82,0.00015616,2]
[322966820,1713547929474,-1673.96,0.00015616,2]
[322966821,1713547929486,-509.51,0.00015616,2]
[322966822,1713547929496,-500.0,0.00015616,2]
[322966823,1713547929506,-640.68,0.00015616,2]
[322966824,1713547929516,-3617.11,0.00015616,2]
[322966825,1713547929528,-2057.12,0.00015616,2]
[322966826,1713547929538,-4923.85,0.00015616,2]
[322966827,1713547929549,-500.0,0.00015616,2]
[322966828,1713547929559,-1954.87,0.00015616,2]
[322966829,1713547929569,-1801.44,0.00015616,2]
[322966830,1713547929579,-4779.03,0.00015616,2]
[322966831,1713547929589,-1554.88,0.00015616,2]
[322966832,1713547929599,-638.45,0.00015616,2]
[322966833,1713547929610,-1770.16,0.00015616,2]
[322966834,1713547929621,-500.0,0.00015616,2]
[322966835,1713547929631,-2684.17,0.00015616,2]
[322966836,1713547929641,-746.73,0.00015616,2]
[322966837,1713547929651,-500.0,0.00015616,2]
[322966838,1713547929661,-678.26,0.00015616,2]
[322966839,1713547929675,-512.19,0.00015616,2]
[322966840,1713547929686,-500.0,0.00015616,2]
[322966841,1713547929696,-1504.54,0.00015616,2]
[322966842,1713547929706,-3655.54,0.00015616,2]
[322966843,1713547929717,-8067.16,0.00015616,2]
[322966844,1713547929727,-2012.53,0.00015616,2]
[322966845,1713547929737,-1114.62,0.00015616,2]
[322966846,1713547929748,-558.22,0.00015616,2]
[322966847,1713547929759,-1607.78,0.00015616,2]
[322966848,1713547929769,-1500.58,0.00015616,2]
[322966849,1713547929779,-500.0,0.00015616,2]
[322966850,1713547929790,-597.96307433,0.00015616,2]
[322966851,1713547929800,-3418.9,0.00015616,2]
[322966852,1713547929810,-500.0,0.00015616,2]
[322966853,1713547929820,-500.0,0.00015616,2]
[322966854,1713547929831,-500.0,0.00015616,2]
[322966855,1713547929841,-1792.81,0.00015616,2]
[322966856,1713547929850,-500.0,0.00015616,2]
[322966857,1713547929860,-1114.52,0.00015616,2]
[322966858,1713547929870,-2342.52,0.00015616,2]
[322966859,1713547929880,-532.06,0.00015616,2]
[322966860,1713547929890,-685.87,0.00015616,2]
[322966861,1713547929900,-27431.3,0.00015616,2]
[322966862,1713547929910,-5407.88,0.00015616,2]
[322966863,1713547929923,-8673.57,0.00015616,2]
[322966864,1713547929935,-3071.89,0.00015616,2]
[322966865,1713547929947,-974.72,0.00015616,2]
[322966866,1713547929959,-500.0,0.00015616,2]
[322966867,1713547929969,-1450.35,0.00015616,2]
[322966868,1713547929980,-1683.58,0.00015616,2]
[322966869,1713547929993,-500.0,0.00015616,2]
[322966870,1713547930004,-500.0,0.00015616,2]
[322966871,1713547930015,-500.0,0.00015616,2]
[322966872,1713547930025,-500.0,0.00015616,2]
[322966873,1713547930036,-639.7,0.00015616,2]
[322966874,1713547930046,-4332.15,0.00015616,2]
[322966875,1713547930056,-1237.51,0.00015616,2]
[322966876,1713547930066,-1182.46,0.00015616,2]
[322966877,1713547930075,-2597.97,0.00015616,2]
[322966878,1713547930085,-3651.9,0.00015616,2]
[322966879,1713547930095,-15683.86,0.00015616,2]
[322966880,1713547930105,-2382.29,0.00015616,2]
[322966881,1713547930115,-7128.78,0.00015616,2]
[322966882,1713547930125,-500.0,0.00015616,2]
[322966883,1713547930136,-500.44,0.00015616,2]
[322966884,1713547930458,-906.78,0.00015616,2]
[322966885,1713547930472,-936.01,0.00015616,2]
[322966886,1713547930482,-3390.69,0.00015616,2]
[322966887,1713547930493,-894.61,0.00015616,2]
[322966888,1713547930502,-500.0,0.00015616,2]
[322966889,1713547930512,-200.0,0.00015682,2]
[322966890,1713547930523,-7199.807428,0.00015682,2]
[322966891,1713547930533,-209.20058154,0.0001572,2]
[322966892,1713547930544,-150.0,0.00015746,2]
[322966893,1713547930553,-1042.72481513,0.00015788,2]
[322966894,1713547930563,-25448.16585625,0.0001579,2]
[322966895,1713547930573,-168.43,0.00015831,2]
[322966896,1713547930582,-167.89,0.00015831,2]
[322966897,1713547930592,-168.11,0.00015831,2]
[322966898,1713547930602,-167.07,0.00015831,2]
[322966899,1713547930612,-167.07,0.00015831,2]
[322966900,1713547930622,-166.46,0.00015831,2]
[322966901,1713547930631,-166.19,0.00015831,2]
[322966902,1713547930641,-350.0,0.0001584,2]
[322966903,1713547930651,-998.84811,0.0001587,2]
[322966904,1713547930661,-7199.807428,0.00015878,2]
[322966905,1713547930670,-166.64,0.00015882,2]
[322966906,1713547930685,-500.0,0.0001589,2]
[322966907,1713547930695,-500.0,0.0001589,2]
[322966908,1713547930705,-500.0,0.0001589,2]
[322966909,1713547930715,-2110.51,0.0001589,2]
[322966910,1713547930725,-587.44,0.0001589,2]
[322966911,1713547930734,-885.07,0.0001589,2]
[322966912,1713547930744,-533.25,0.0001589,2]
[322966913,1713547930754,-500.0,0.0001589,2]
[322966914,1713547930764,-588.52,0.0001589,2]
[322966915,1713547930774,-688.61,0.0001589,2]
[322966916,1713547930785,-500.0,0.0001589,2]
[322966917,1713547930794,-500.0,0.0001589,2]
[322966918,1713547930803,-1128.42,0.0001589,2]
[322966919,1713547930812,-1405.03,0.0001589,2]
[322966920,1713547930822,-676.86,0.0001589,2]
[322966921,1713547930831,-507.93,0.0001589,2]
[322966922,1713547930840,-1724.21,0.0001589,2]
[322966923,1713547930849,-500.0,0.0001589,2]
[322966924,1713547930858,-853.04,0.0001589,2]
[322966925,1713547930867,-1185.05,0.0001589,2]
[322966926,1713547930876,-500.0,0.0001589,2]
[322966927,1713547930886,-500.0,0.0001589,2]
[322966928,1713547930895,-868.94,0.0001589,2]
[322966929,1713547930904,-500.0,0.0001589,2]
[322966930,1713547930914,-649.32,0.0001589,2]
[322966931,1713547930931,-500.0,0.0001589,2]
[322966932,1713547930941,-783.57,0.0001589,2]
[322966933,1713547930951,-945.56,0.0001589,2]
[322966934,1713547930961,-2494.46,0.0001589,2]
[322966935,1713547930971,-500.0,0.0001589,2]
[322966936,1713547930980,-636.73,0.0001589,2]
[322966937,1713547930990,-500.0,0.0001589,2]
[322966938,1713547931000,-500.0,0.0001589,2]
[322966939,1713547931009,-500.0,0.0001589,2]
[322966940,1713547931021,-859.12,0.0001589,2]
[322966941,1713547931032,-690.43,0.0001589,2]
[322966942,1713547931042,-1352.48,0.0001589,2]
[322966943,1713547931052,-720.67,0.0001589,2]
[322966944,1713547931062,-823.18,0.0001589,2]
[322966945,1713547931072,-1996.03,0.0001589,2]
[322966946,1713547931082,-500.0,0.0001589,2]
[322966947,1713547931092,-686.86,0.0001589,2]
[322966948,1713547931101,-1738.27,0.0001589,2]
[322966949,1713547931111,-791.6,0.0001589,2]
[322966950,1713547931121,-500.0,0.0001589,2]
[322966951,1713547931131,-693.35,0.0001589,2]
[322966952,1713547931141,-1572.34,0.0001589,2]
[322966953,1713547931152,-500.0,0.0001589,2]
[322966954,1713547931162,-500.0,0.0001589,2]
[322966955,1713547931175,-500.0,0.0001589,2]
[322966956,1713547931186,-508.11,0.0001589,2]
[322966957,1713547931196,-500.0,0.0001589,2]
[322966958,1713547931205,-818.65,0.0001589,2]
[322966959,1713547931215,-500.0,0.0001589,2]
[322966960,1713547931225,-813.18,0.0001589,2]
[322966961,1713547931234,-734.58,0.0001589,2]
[322966962,1713547931244,-500.0,0.0001589,2]
[322966963,1713547931254,-1007.18,0.0001589,2]
[322966964,1713547931264,-702.98,0.0001589,2]
[322966965,1713547931274,-732.08,0.0001589,2]
[322966966,1713547931284,-587.33,0.0001589,2]
[322966967,1713547931293,-500.0,0.0001589,2]
[322966968,1713547931303,-953.8,0.0001589,2]
[322966969,1713547931312,-500.0,0.0001589,2]
[322966970,1713547931322,-517.39232943,0.0001589,2]
[322966971,1713547931332,-1109.36,0.0001589,2]
[322966972,1713547931341,-500.0,0.0001589,2]
[322966973,1713547931351,-636.51,0.0001589,2]
[322966974,1713547931362,-533.92,0.0001589,2]
[322966975,1713547931372,-616.51,0.0001589,2]
[322966976,1713547931382,-500.0,0.0001589,2]
[322966977,1713547931391,-760.02,0.0001589,2]
[322966978,1713547931400,-500.0,0.0001589,2]
[322966979,1713547931410,-633.07,0.0001589,2]
[322966980,1713547931419,-500.0,0.0001589,2]
[322966981,1713547931435,-799.71,0.0001589,2]
[322966982,1713547931444,-500.0,0.0001589,2]
[322966983,1713547931458,-1421.13,0.0001589,2]
[322966984,1713547931468,-779.79,0.0001589,2]
[322966985,1713547931477,-1371.73,0.0001589,2]
[322966986,1713547931486,-731.74,0.0001589,2]
[322966987,1713547931497,-500.0,0.0001589,2]
[322966988,1713547931507,-1433.68,0.0001589,2]
[322966989,1713547931516,-500.0,0.0001589,2]
[322966990,1713547931526,-500.0,0.0001589,2]
[322966991,1713547931536,-611.22,0.0001589,2]
[322966992,1713547931545,-587.6,0.0001589,2]
[322966993,1713547931555,-800.51,0.0001589,2]
[322966994,1713547931564,-802.08,0.0001589,2]
[322966995,1713547931573,-570.42,0.0001589,2]
[322966996,1713547931583,-545.49,0.0001589,2]
[322966997,1713547931593,-622.53,0.0001589,2]
[322966998,1713547931603,-894.82,0.0001589,2]
[322966999,1713547931612,-665.31,0.0001589,2]
[322967000,1713547931622,-500.0,0.0001589,2]
[322967001,1713547931631,-181.92099973,0.0001589,2]
[322967002,1713547931641,-500.0,0.0001589,2]
[322967003,1713547931650,-500.0,0.0001589,2]
[322967004,1713547931660,-1402.68,0.0001589,2]
[322967005,1713547931670,-1548.19,0.0001589,2]
[322967006,1713547931687,-696.4,0.0001589,2]
[322967007,1713547931696,-500.0,0.0001589,2]
[322967008,1713547931705,-500.0,0.0001589,2]
[322967009,1713547931714,-667.78,0.0001589,2]
[322967010,1713547931726,-1817.86,0.0001589,2]
[322967011,1713547931735,-1854.53,0.0001589,2]
[322967012,1713547931745,-1323.45,0.0001589,2]
[322967013,1713547931755,-500.0,0.0001589,2]
[322967014,1713547931764,-500.0,0.0001589,2]
[322967015,1713547931773,-657.97,0.0001589,2]
[322967016,1713547931782,-500.0,0.0001589,2]
[322967017,1713547931792,-500.0,0.0001589,2]
[322967018,1713547931802,-500.0,0.0001589,2]
[322967019,1713547931812,-500.0,0.0001589,2]
[322967020,1713547931823,-341.61704088,0.0001589,2]
[322967021,1713547931833,-692.84,0.0001589,2]
[322967022,1713547931844,-500.0,0.0001589,2]
[322967023,1713547931855,-500.0,0.0001589,2]